Cogmind - Beta 15 @@@ ROGUE MODE // 2025.06.17 @ 03:28:52 Player: CL-1C0 Result: Self-destructed Performance ------------- Evolutions (2) 1000 Regions Visited (3) 600 Robots Destroyed (0) 0 Value Destroyed (0) 0 Prototype IDs (0) 0 Alien Tech Used (0) 0 Bonus (470) 470 TOTAL SCORE: 2070 Bonus ------- Pacifist 470 Cogmind --------- Core Integrity 523/550 Matter 242/300 Energy 99/100 System Corruption 0% Temperature Cool (27) Movement Core (50) Location -8/Materials Parts ------- > --- POWER (1) -------- (None) > --- PROPULSION (3) --- Advanced Treads Advanced Treads Advanced Treads > --- UTILITY (5) ------ (None) > --- WEAPON (2) ------- (None) > --- INVENTORY (5) ---- Light Treads Light Treads Advanced Treads Peak State ------------ > --- POWER ------------ (None) > --- PROPULSION ------- Advanced Treads Advanced Treads Advanced Treads > --- UTILITY ---------- (None) > --- WEAPON ----------- (None) > --- INVENTORY -------- Light Treads Light Treads [Rating: 9] Favorites ----------- Power None Propulsion Light Treads Treads Light Treads Utility None Weapon None Build | -11 -10 -9 -8 ------- Run | Yrd Mat Mat Mat Slots Evolved 4 | . . 2 2 Power . | . . . . Propulsion 1 | . . 1 . Utility 3 | . . 1 2 Weapon . | . . . . Parts Attached 6 | 2 . 4 . Power . | . . . . Engine . | . . . . Core . | . . . . Reactor . | . . . . Propulsion 6 | 2 . 4 . Treads 6 | 2 . 4 . Leg . | . . . . Wheel . | . . . . Hover . | . . . . Flight . | . . . . Utility . | . . . . Device . | . . . . Storage . | . . . . Processor . | . . . . Hackware . | . . . . Protection . | . . . . Artifact . | . . . . Weapon . | . . . . Energy Gun . | . . . . Energy Cannon . | . . . . Ballistic Gun . | . . . . Ballistic Cannon . | . . . . Launcher . | . . . . Special Weapon . | . . . . Impact Weapon . | . . . . Slashing Weapon . | . . . . Piercing Weapon . | . . . . Special Melee Weapon . | . . . . Unidentified Prototypes . | . . . . Parts Lost . | . . . . Power . | . . . . Propulsion . | . . . . Utility . | . . . . Weapon . | . . . . Highest Loss Streak . | . . . . To Critical Strikes . | . . . . Average Backups . | 4 . . 3 Power . | 1 . . . Propulsion . | 3 . . 3 Utility . | . . . . Weapon . | . . . . Tool/Special . | . . . . Unused Backups . | . . . . Power . | . . . . Propulsion . | . . . . Utility . | . . . . Weapon . | . . . . Tool/Special . | . . . . Average Slot Usage (%) 25 | . 28 23 27 Treads 25 | . 28 23 27 Peak Build Rating 9 | 2 2 9 9 Average Rating 3 | 1 2 3 9 On Entrance 4 | 6 2 2 9 Naked Turns . | . . . . Heaviest Build . | . . . . Greatest Support 22 | 3 3 22 3 Greatest Overweight (x) . | . . . . Average Overweight (x) . | . . . . Largest Inventory Capacity 5 | 5 5 5 5 Average Capacity 5 | 5 5 5 5 Most Carried 4 | 4 . 3 3 Average Carried . | 2 . . 3 Final Capacity 5 | 5 5 5 5 Final Carried 3 | . . 3 3 Class Distribution -------------------- 100% | Mutant Dominant Class ---------------- Mutant | -10/Materials Mutant | -9/Materials Mutant | -8/Materials Resources | -11 -10 -9 -8 ----------- Run | Yrd Mat Mat Mat Matter Collected 200 | 200 . . . Remotely . | . . . . Salvage Created . | . . . . Parts . | . . . . Haulers Intercepted . | . . . . Recyclers Shooed . | . . . . Parts Field Recycled . | . . . . Retrieved Matter . | . . . . Parts Self-Destructed . | . . . . Prevented . | . . . . Kills | -11 -10 -9 -8 ------- Run | Yrd Mat Mat Mat Combat Hostiles Destroyed . | . . . . Classes Destroyed . | . . . . Best Kill Streak . | . . . . Combat Bots Only . | . . . . Max Kills in Single Turn . | . . . . Gunslinging . | . . . . Exploded . | . . . . Melee . | . . . . Uniques/NPCs Destroyed . | . . . . Combat | -11 -10 -9 -8 -------- Run | Yrd Mat Mat Mat Hostile Shots Fired 51 | . 25 12 14 Missed 18 | . 12 4 2 Hits 33 | . 13 8 12 Projectile 33 | . 13 8 12 Critical Strikes 1 | . . . 1 Damage Taken 320 | . 108 99 113 Core 86 | . 34 25 27 Absorbed by Shields . | . . . . Core Remaining (%) 93 | 100 86 93 . Volleys Fired . | . . . . Largest . | . . . . Hottest . | . . . . Shots Fired . | . . . . Gun . | . . . . Cannon . | . . . . Launcher . | . . . . Special . | . . . . Kinetic . | . . . . Thermal . | . . . . Explosive . | . . . . Electromagnetic . | . . . . Robot Hit Streak . | . . . . Robot Miss Streak . | . . . . Penetration Max . | . . . . Secondary Targets . | . . . . Shots Hit Robots . | . . . . Core Hits 1 | . . . 1 Critical Kills . | . . . . Critical Parts Destroyed . | . . . . Critical Strikes . | . . . . Melee Attacks . | . . . . Impact . | . . . . Slashing . | . . . . Piercing . | . . . . Sneak Attacks . | . . . . Combat Hostiles . | . . . . Follow-up Attacks . | . . . . Damage Inflicted 6 | . . . 6 Guns . | . . . . Cannons . | . . . . Explosions . | . . . . Melee . | . . . . Ramming 6 | . . . 6 Kinetic . | . . . . Thermal . | . . . . Explosive . | . . . . Electromagnetic . | . . . . Impact . | . . . . Slashing . | . . . . Piercing . | . . . . Highest Corruption 1 | . . 1 . Average Corruption 1 | . . 1 . Corruption Purged . | . . . . Corruption Blocked . | . . . . Effects 1 | . . 1 . Message Errors 1 | . . 1 . Overload Shots . | . . . . Overflow Damage . | . . . . Projectiles . | . . . . Explosions . | . . . . Melee . | . . . . Knockbacks . | . . . . Impact . | . . . . Kinetic . | . . . . Secondary . | . . . . Self-Inflicted Damage . | . . . . Shots . | . . . . Rammed 1 | . . . 1 Targets Rammed 1 | . . . 1 Kicked . | . . . . Crushed . | . . . . Highest Temperature . | . . . . Average Temperature . | . . . . Received Heat Transfer 75 | . . 48 27 Siege Activations . | . . . . Martial Activations . | . . . . Shielding Activations . | . . . . Robots Disrupted . | . . . . Combat Hostiles . | . . . . Robots Corrupted . | . . . . Combat Hostiles . | . . . . Parts Fried . | . . . . Impact Corruptions . | . . . . Robots Melted . | . . . . Combat Hostiles . | . . . . Parts Melted . | . . . . Heat Transferred . | . . . . Parts Sabotaged . | . . . . Parts Stolen . | . . . . Parts Stripped . | . . . . Power Chain Reactions . | . . . . Alert | -11 -10 -9 -8 ------- Run | Yrd Mat Mat Mat Maximum Alert Level . | . . . . Low Security (%) 100 | 100 100 100 100 Level 1 . | . . . . Level 2 . | . . . . Level 3 . | . . . . Level 4 . | . . . . Level 5 . | . . . . High Security . | . . . . Max Security . | . . . . Peak Influence 20 | . 20 15 15 Initial 8 | . . 8 5 Average 1 | . 1 2 3 Influence Increases 75 | . 30 15 30 Lose Combat Pursuer 75 | . 30 15 30 Influence Decreases 45 | . 10 20 15 Entered New Map 22 | . . 12 10 Time Decay 23 | . 10 8 5 Squads Dispatched 5 | . 1 2 2 Investigation 3 | . . 2 1 Extermination . | . . . . Reinforcement 1 | . 1 . . Assault . | . . . . Garrison 1 | . . . 1 Intercept . | . . . . Searches Triggered . | . . . . Construction Impeded . | . . . . Haulers Reinforced . | . . . . Active Scanning Responses . | . . . . Cargo Convoy Interrupts . | . . . . Stealth | -11 -10 -9 -8 --------- Run | Yrd Mat Mat Mat Distress Signals 3 | . 2 1 . Communications Jammed . | . . . . Distress Signals . | . . . . Times Spotted 28 | . 13 6 9 Peak Tracking Total 10 | . 10 4 8 Tactical Retreats 3 | . 1 1 1 Traps | -11 -10 -9 -8 ------- Run | Yrd Mat Mat Mat Traps Triggered . | . . . . Indirectly . | . . . . Trap Hack Attempts . | . . . . Triggered . | . . . . Disarmed . | . . . . Reprogrammed . | . . . . Reused . | . . . . Traps Extracted . | . . . . Installed . | . . . . Triggered . | . . . . Machines | -11 -10 -9 -8 ---------- Run | Yrd Mat Mat Mat Machines Disabled . | . . . . Max in Single Turn . | . . . . Machines Repaired . | . . . . Machines Dismantled . | . . . . Machines Sabotaged . | . . . . Overloaded Fab Kills . | . . . . Hacking | -11 -10 -9 -8 --------- Run | Yrd Mat Mat Mat Machines Accessed 8 | . 1 5 2 Terminals 8 | . 1 5 2 Fabricators . | . . . . Repair Stations . | . . . . Recycling Units . | . . . . Scanalyzers . | . . . . Garrison Access . | . . . . Total Hacks 22 | . 3 13 6 Successful . | . . . . Failed 22 | . 3 13 6 Catastrophic 9 | . 2 4 3 Database Lockouts . | . . . . Manual 18 | . 3 9 6 Terminals 22 | . 3 13 6 Fabricators . | . . . . Repair Stations . | . . . . Recycling Units . | . . . . Scanalyzers . | . . . . Garrison Access . | . . . . Terminal Hacks . | . . . . Fabricator Hacks . | . . . . Repair Station Hacks . | . . . . Recycling Unit Hacks . | . . . . Scanalyzer . | . . . . Garrison Access Hacks . | . . . . Unauthorized Hacks . | . . . . Terminals . | . . . . Fabricators . | . . . . Repair Stations . | . . . . Recycling Units . | . . . . Scanalyzers . | . . . . Garrison Access . | . . . . Data Cores Recovered . | . . . . Used . | . . . . Hacking Detections 8 | . 1 5 2 Full Trace Events 7 | . 1 5 1 Feedback Events 1 | . . 1 . Corruption 1 | . . 1 . Feedback Blocked . | . . . . Robot Schematics Acquired . | . . . . Robots Built . | . . . . Authchips . | . . . . Time . | . . . . Total Robot Build Rating . | . . . . Part Schematics Acquired . | . . . . Parts Built . | . . . . Authchips . | . . . . Time . | . . . . Total Part Build Rating . | . . . . Parts Repaired . | . . . . Time . | . . . . Parts Recycled . | . . . . Recycled Matter . | . . . . Retrieved Matter . | . . . . Retrieved Components . | . . . . Parts Scanalyzed . | . . . . Part Schematics Acquired . | . . . . Parts Damaged . | . . . . Bothacking | -11 -10 -9 -8 ------------ Run | Yrd Mat Mat Mat Used RIF Installer . | . . . . Robots Hacked . | . . . . Non-combat . | . . . . Combat . | . . . . Robot Hacks Applied . | . . . . Relay Couplers Released . | . . . . Fabnet Peak Effective % . | . . . . Robots Rewired . | . . . . Allies Hacked . | . . . . Hacks Repelled . | . . . . Allies | -11 -10 -9 -8 -------- Run | Yrd Mat Mat Mat Total Allies . | . . . . Largest Group . | . . . . Highest-Rated Group . | . . . . Highest-Rated Ally . | . . . . Total Orders . | . . . . Ally Attacks . | . . . . Total Damage . | . . . . Kills . | . . . . Allies Corrupted . | . . . . Allies Melted . | . . . . Intel | -11 -10 -9 -8 ------- Run | Yrd Mat Mat Mat Active Infowar (turns) . | . . . . Robot Analysis Total . | . . . . Derelict Logs Recovered . | . . . . Drone Launches . | . . . . Drone Recoveries . | . . . . Exploration | -11 -10 -9 -8 ------------- Run | Yrd Mat Mat Mat Turns Passed 222 | 4 64 119 35 Spaces Moved 420 | 1 127 225 67 Core 419 | 1 127 224 67 Treads 1 | . . 1 . Legs . | . . . . Wheels . | . . . . Hover . | . . . . Flight . | . . . . Fastest Speed 50 | 50 50 50 50 Average Speed 50 | 50 50 50 50 Slowest Speed 145 | 50 50 145 50 Overloaded Moves . | . . . . Propulsion Burnouts . | . . . . Robots Hopped . | . . . . Potential Cave-ins . | . . . . Cave-ins Triggered . | . . . . Exploration Rate (%) 20 | 2 35 33 11 Regions Visited 3 Branch Regions . Pre-discovered Areas . | . . . . Known Exits Taken . | . . . . Unknown Exits Taken 3 | 1 1 1 . Scrap Searched . | . . . . Spaces Dug . | . . . . Terrain Destroyed . | . . . . Melee . | . . . . Projectile . | . . . . AOE . | . . . . Terrain Rammed . | . . . . Walls Destroyed . | . . . . Machines Disabled . | . . . . Actions | -11 -10 -9 -8 --------- Run | Yrd Mat Mat Mat Total 427 | 5 126 228 68 Wait . | . . . . Move 417 | . 126 224 67 Hop . | . . . . Pick Up . | . . . . Fast Attach 1 | . . 1 . Attach 2 | 2 . . . Detach . | . . . . Swap 3 | . . 3 . Drop 3 | 3 . . . Fire . | . . . . Melee . | . . . . Ram . | . . . . Kick . | . . . . Crush 1 | . . . 1 Escape Stasis . | . . . . Rewire . | . . . . Trap . | . . . . Miscellaneous . | . . . . Route ------- -11/Scrapyard -10/Materials -9/Materials -8/Materials History --------- Turn | Location | Event 1 | -11/Scrapyard | Released all parts (6) 5 | -11/Scrapyard | Discovered new exit (range 0) 5 | -11/Scrapyard | Entered Materials 62 | -10/Materials | Discovered new exit (range 13) 69 | -10/Materials | Entered another Materials area 69 | -9/Materials | Evolved 2 slots: Propulsion x1, Utility x1 175 | -9/Materials | Discovered new exit (range 15) 188 | -9/Materials | Entered another Materials area 188 | -8/Materials | Evolved 2 slots: Utility x2 221 | -8/Materials | Garrison activated, responded to threat 223 | -8/Materials | Self-destructed Last Messages --------------- 00166_ Acquired Adv. Treads. 00175_ EXIT=FOUND 00183_ Connecting with Terminal... 00183_ ALERT: Suspicious activity at Terminal M010. Dispatching Investigation squad. 00187_ Connecting with Terminal... Distant sounds of combat echo through the corridors. PARAMETERS=UTILITY+2 LOCATION=UNKNOWN GOAL=ESCAPE 00197_ K-01 Serf collects debris. 00199_ Connecting with Terminal... 00199_ Current location identified: Materials 00200_ K-01 Serf collects debris. 00218_ Slammed into S-10 Pest. 00221_ ALERT: Activating Garrison Access M001. 00223_ Critical hit (Burn: +37). 00223_ Connecting with Terminal... 00223_ ALERT: Suspicious activity at Terminal M004. Dispatching Investigation squad. Map ----- +----------------------------------------------------+ | | | | | | | | | | | | | | | | | | | | | | | | | | | | | ?????????????????????????????????????????????????? | | ?????????????????????????????????????????????????? | | ?????????????????????????????????????????????????? | | ?????????????????????????????????????????????????? | | ?????????????????????????????????????????????????? | | ?????????????????????????????????????????????????? | | ??????????????????????########???????????????????? | | ??????????????????????# ! ##??????????????????? | | ??????????????????????# !!Y#######????????????? | | ??????????????????????#"" ! #?# #????????????? | | ??????????????????????#"T #?# #????????????? | | ??????????????????????#""@ #?# #???#####????? | | ??????????????????????# #?# #???# #??### | | ???????????????????##+####+##### #???# #? | | ???????????? #? #???# #? " | | ???????????????????########## #? [#???# # " | | ????????????????????????????# #?? ????# # ] " | | ????????????????????????????# #?? ????# + | | ????????????????############# ####+#????# # " | | ????????? #????# # " | | ???????????????#/##############+## #????# #? " | | ?????????????????????????????? # #????# #? | | ?????????????????????????????? # #????# #??### | | ?????????????????????????????"" # #????# #????? | | ?????????????????????????????"" # #????# #????? | | ????????????????????????????""" # #????# #????? | | ???????????????????????????? # #????# #????? | | ????????????????????????????###### #????# #????? | | ?????????????????????????????????# #????# #????? | | ?????????????????????????????????# #????# #????? | | ?????????????????????????????????# #????# #????? | | ??????????????????????#########??# #????# #????? | | ??????????????????????# ??# #???## ##???? | | ???????????????????????? ## ##### #???? | | ????????????????????????? """ # T" #???? | | ??????????????????????????""""" + " #???? | +----------------------------------------------------+ Best States ------------- Heat Dissipation 31 Energy Generation 5 Energy Capacity 100 Matter Stores 280 Matter Capacity 300 Sight Range 16 Terrain Scan Density 10 Evasion (%) 50 Recoil Reduction 1 Item Schematics ----------------- None Robot Schematics ------------------ None Fabricated ------------ Nothing Repaired ---------- Nothing Alien Tech Used ----------------- None Achievements -------------- None Challenges ------------ None Game ------ Seed MetafieldFlakBarrier Manual? 0 Play Time 00:03:43 Cumulative 541.2 hours Start 2025.06.17 @ 03:25:43 End 2025.06.17 @ 03:28:52 Sessions 1 Manual Loads 0 Difficulty Rogue Special Mode None Game No. 646 Rogue 646 Adventurer 0 Explorer 0 Win Type - Total 19 Types 13/0/5/1/0/0/0/0/0/0 Lore% 84 Gallery% 83 Achievement% 82 Wizard Run 0 Options --------- Layout 0 ASCII 0 Keyboard 0 Movement Numpad Keybinds 0 Fullscreen 1 Font 18/SmallcapsGlow Map View 76x50 Zoom Use 0% Tactical HUD 1 Map Filters NONE Filters NONE Steam 1 RUN: 58baafe6-6396-438e-83fd-116741a9d038